[Event "Kvibergspelen 2018"]
[Site "Prioritet Serneke Arena, Krutvagen 2, Gothenburg, Sweden"]
[Date "2018.04.22"]
[Round "7.10"]
[White "Troberg Eskola, Love"]
[Black "Sorensen, Hampus"]
[Result "1-0"]
[TimeControl "15 minutes + 5 seconds per move from move one (Round 1 - 4) / 90 minutes + 30 seconds per move from move one (Round 5 - 8)"]
[WhiteFideId "1724185"]
[BlackFideId "8703884"]
[WhiteElo "2045"]
[BlackElo "2243"]

1. e4 {[%clk 01:29:27]} {[%emt 00:01:32]} e5 {[%clk 01:30:53]} {[%emt
00:00:08]} 2. Nf3 {[%clk 01:29:44]} {[%emt 00:00:13]} Nc6 {[%clk 01:31:02]}
{[%emt 00:00:20]} 3. Bb5 {[%clk 01:30:10]} {[%emt 00:00:04]} a6 {[%clk
01:31:04]} {[%emt 00:00:28]} 4. Ba4 {[%clk 01:30:36]} {[%emt 00:00:04]} Nf6
{[%clk 01:30:58]} {[%emt 00:00:34]} 5. d4 {[%clk 01:31:00]} {[%emt 00:00:07]}
exd4 {[%clk 01:28:56]} {[%emt 00:02:33]} 6. O-O {[%clk 01:31:20]} {[%emt
00:00:09]} Be7 {[%clk 01:27:31]} {[%emt 00:01:55]} 7. Re1 {[%clk 01:31:43]}
{[%emt 00:00:07]} b5 {[%clk 01:25:28]} {[%emt 00:02:33]} 8. Bb3 {[%clk
01:32:06]} {[%emt 00:00:07]} d6 {[%clk 01:25:05]} {[%emt 00:00:53]} 9. Bd5
{[%clk 01:32:02]} {[%emt 00:00:34]} Nxd5 {[%clk 01:15:36]} {[%emt 00:09:59]} 10.
exd5 {[%clk 01:32:31]} {[%emt 00:00:02]} Ne5 {[%clk 01:15:47]} {[%emt
00:00:19]} 11. Nxd4 {[%clk 01:32:51]} {[%emt 00:00:09]} Bd7 {[%clk 01:14:21]}
{[%emt 00:01:55]} 12. Nc3 {[%clk 01:28:56]} {[%emt 00:04:26]} O-O {[%clk
01:11:07]} {[%emt 00:03:44]} 13. a4 {[%clk 01:28:17]} {[%emt 00:01:09]} bxa4
{[%clk 01:01:57]} {[%emt 00:09:40]} 14. Nxa4 {[%clk 01:28:11]} {[%emt
00:00:36]} Re8 {[%clk 00:58:56]} {[%emt 00:03:31]} 15. Nc3 {[%clk 01:25:09]}
{[%emt 00:03:33]} Qb8 {[%clk 00:56:49]} {[%emt 00:02:37]} 16. b3 {[%clk
01:22:23]} {[%emt 00:03:15]} Qb7 {[%clk 00:54:01]} {[%emt 00:03:17]} 17. Bb2
{[%clk 01:14:54]} {[%emt 00:08:00]} Bf8 {[%clk 00:50:18]} {[%emt 00:04:13]} 18.
Qd2 {[%clk 01:08:34]} {[%emt 00:06:49]} Ng6 {[%clk 00:41:38]} {[%emt 00:09:10]}
19. Red1 {[%clk 01:03:41]} {[%emt 00:05:24]} Ne7 {[%clk 00:39:40]} {[%emt
00:02:28]} 20. Ra5 {[%clk 00:58:21]} {[%emt 00:05:49]} h6 {[%clk 00:32:48]}
{[%emt 00:07:22]} 21. Rda1 {[%clk 00:50:38]} {[%emt 00:08:13]} c6 {[%clk
00:28:57]} {[%emt 00:04:22]} 22. dxc6 {[%clk 00:49:05]} {[%emt 00:02:03]} Nxc6
{[%clk 00:29:24]} {[%emt 00:00:03]} 23. Nxc6 {[%clk 00:47:49]} {[%emt
00:01:46]} Bxc6 {[%clk 00:29:33]} {[%emt 00:00:21]} 24. Nd5 {[%clk 00:46:49]}
{[%emt 00:01:29]} Bxd5 {[%clk 00:26:23]} {[%emt 00:03:40]} 25. Rxd5 {[%clk
00:45:16]} {[%emt 00:02:03]} Re2 {[%clk 00:26:42]} {[%emt 00:00:12]} 26. Qxe2
{[%clk 00:44:51]} {[%emt 00:00:55]} Qxd5 {[%clk 00:27:10]} {[%emt 00:00:02]} 27.
h3 {[%clk 00:39:48]} {[%emt 00:05:33]} Qc6 {[%clk 00:26:12]} {[%emt 00:01:28]}
28. c4 {[%clk 00:38:37]} {[%emt 00:01:42]} Rb8 {[%clk 00:24:17]} {[%emt
00:02:24]} 29. Qd3 {[%clk 00:35:19]} {[%emt 00:03:48]} Rb6 {[%clk 00:21:36]}
{[%emt 00:03:11]} 30. Bd4 {[%clk 00:25:21]} {[%emt 00:10:28]} Rb4 {[%clk
00:19:35]} {[%emt 00:02:32]} 31. Bb2 {[%clk 00:20:36]} {[%emt 00:05:15]} Qb7
{[%clk 00:18:49]} {[%emt 00:01:15]} 32. Ra3 {[%clk 00:19:30]} {[%emt 00:01:36]}
Qc6 {[%clk 00:15:39]} {[%emt 00:03:42]} 33. Bc3 {[%clk 00:16:37]} {[%emt
00:03:23]} Rb8 {[%clk 00:15:50]} {[%emt 00:00:18]} 34. b4 {[%clk 00:15:28]}
{[%emt 00:01:39]} Rc8 {[%clk 00:13:59]} {[%emt 00:02:21]} 35. b5 {[%clk
00:15:14]} {[%emt 00:00:44]} axb5 {[%clk 00:13:41]} {[%emt 00:00:48]} 36. cxb5
{[%clk 00:15:33]} {[%emt 00:00:10]} Qc5 {[%clk 00:10:22]} {[%emt 00:03:49]} 37.
Bd4 {[%clk 00:11:52]} {[%emt 00:04:12]} Qc1+ {[%clk 00:09:29]} {[%emt
00:01:23]} 38. Kh2 {[%clk 00:12:16]} {[%emt 00:00:07]} d5 {[%clk 00:09:20]}
{[%emt 00:00:39]} 39. Rb3 {[%clk 00:09:04]} {[%emt 00:03:41]} Bd6 {[%clk
00:04:30]} {[%emt 00:05:20]} 40. g3 {[%clk 00:09:27]} {[%emt 00:00:07]} Bb8
{[%clk 00:03:35]} {[%emt 00:01:25]} 41. b6 {[%clk 00:09:03]} {[%emt 00:00:55]}
Re8 {[%clk 00:03:49]} {[%emt 00:00:16]} 42. Rc3 {[%clk 00:07:50]} {[%emt
00:01:43]} Qg5 {[%clk 00:02:27]} {[%emt 00:01:52]} 43. b7 {[%clk 00:07:43]}
{[%emt 00:00:36]} Qe7 {[%clk 00:01:51]} {[%emt 00:01:05]} 44. Rc8 {[%clk
00:07:34]} {[%emt 00:00:39]} Qd7 {[%clk 00:01:23]} {[%emt 00:00:58]} 45. Qc3
{[%clk 00:06:21]} {[%emt 00:01:43]} f6 {[%clk 00:01:36]} {[%emt 00:00:17]} 46.
Bb6 {[%clk 00:02:32]} {[%emt 00:04:19]} Kf7 {[%clk 00:01:13]} {[%emt 00:00:53]}
47. Rxe8 {[%clk 00:02:41]} {[%emt 00:00:20]} Qxe8 {[%clk 00:01:39]} {[%emt
00:00:05]} 48. Qc8 {[%clk 00:03:02]} {[%emt 00:00:09]} Bxg3 {[%clk 00:00:54]}
{[%emt 00:01:15]} 49. Kxg3 {[%clk 00:02:13]} {[%emt 00:01:18]} Qe5+ {[%clk
00:01:18]} {[%emt 00:00:05]} 50. f4 {[%clk 00:02:33]} {[%emt 00:00:10]} Qe1+
{[%clk 00:01:24]} {[%emt 00:00:24]} 51. Bf2 {[%clk 00:02:55]} {[%emt 00:00:08]}
Qe4 {[%clk 00:01:35]} {[%emt 00:00:19]} 52. Qd7+ {[%clk 00:02:31]} {[%emt
00:00:54]} Kg6 {[%clk 00:01:53]} {[%emt 00:00:12]} 53. Qg4+ {[%clk 00:02:33]}
{[%emt 00:00:28]} Kh7 {[%clk 00:02:22]} {[%emt 00:00:02]} 54. b8=Q {[%clk
00:02:49]} {[%emt 00:00:14]} Qd3+ {[%clk 00:02:50]} {[%emt 00:00:02]} 55. Kh2
{[%clk 00:02:53]} {[%emt 00:00:25]} f5 {[%clk 00:03:13]} {[%emt 00:00:07]} 56.
Qg3 {[%clk 00:03:09]} {[%emt 00:00:14]} Qb1 {[%clk 00:02:59]} {[%emt 00:00:44]}
57. Qxb1 {[%clk 00:03:29]} {[%emt 00:00:10]} 1-0

[Event "Kvibergspelen 2018"]
[Site "Prioritet Serneke Arena, Krutvagen 2, Gothenburg, Sweden"]
[Date "2018.04.22"]
[Round "7.11"]
[White "Naslund, Mikael"]
[Black "Rasti, Arvin"]
[Result "1/2-1/2"]
[TimeControl "15 minutes + 5 seconds per move from move one (Round 1 - 4) / 90 minutes + 30 seconds per move from move one (Round 5 - 8)"]
[WhiteTitle "FM"]
[WhiteFideId "1708260"]
[BlackFideId "1741160"]
[WhiteElo "2224"]
[BlackElo "1920"]

1. d4 {[%clk 01:30:57]} {[%emt 00:00:03]} d5 {[%clk 01:30:47]} {[%emt
00:00:13]} 2. Bf4 {[%clk 01:31:02]} {[%emt 00:00:24]} Nf6 {[%clk 01:30:54]}
{[%emt 00:00:23]} 3. e3 {[%clk 01:31:26]} {[%emt 00:00:07]} Bf5 {[%clk
01:30:46]} {[%emt 00:00:37]} 4. Nd2 {[%clk 01:30:31]} {[%emt 00:01:26]} e6
{[%clk 01:29:39]} {[%emt 00:01:36]} 5. c3 {[%clk 01:30:18]} {[%emt 00:00:44]}
c6 {[%clk 01:27:37]} {[%emt 00:02:32]} 6. Qb3 {[%clk 01:28:08]} {[%emt
00:02:40]} Qb6 {[%clk 01:27:42]} {[%emt 00:00:25]} 7. h3 {[%clk 01:26:57]}
{[%emt 00:01:41]} Nbd7 {[%clk 01:24:47]} {[%emt 00:03:24]} 8. Ngf3 {[%clk
01:23:44]} {[%emt 00:03:44]} h6 {[%clk 01:18:10]} {[%emt 00:07:06]} 9. Be2
{[%clk 01:20:13]} {[%emt 00:04:02]} Be7 {[%clk 01:17:08]} {[%emt 00:01:32]} 10.
g4 {[%clk 01:15:30]} {[%emt 00:05:14]} Be4 {[%clk 01:13:42]} {[%emt 00:03:55]}
11. Nxe4 {[%clk 01:14:22]} {[%emt 00:01:39]} Nxe4 {[%clk 01:13:45]} {[%emt
00:00:26]} 12. h4 {[%clk 01:02:50]} {[%emt 00:12:02]} O-O-O {[%clk 01:06:02]}
{[%emt 00:08:13]} 13. Qxb6 {[%clk 01:00:04]} {[%emt 00:03:17]} axb6 {[%clk
01:05:18]} {[%emt 00:01:13]} 14. h5 {[%clk 00:56:35]} {[%emt 00:03:59]} Bd6
{[%clk 01:02:46]} {[%emt 00:03:02]} 15. Bxd6 {[%clk 00:55:19]} {[%emt
00:01:47]} Nxd6 {[%clk 01:03:00]} {[%emt 00:00:16]} 16. O-O-O {[%clk 00:52:05]}
{[%emt 00:03:44]} Ne4 {[%clk 00:59:45]} {[%emt 00:03:44]} 17. Rh2 {[%clk
00:52:18]} {[%emt 00:00:17]} Kc7 {[%clk 00:57:00]} {[%emt 00:03:15]} 18. Rg1
{[%clk 00:51:53]} {[%emt 00:00:56]} Ng5 {[%clk 00:45:18]} {[%emt 00:12:12]} 19.
Nd2 {[%clk 00:45:55]} {[%emt 00:06:28]} f6 {[%clk 00:38:14]} {[%emt 00:07:34]}
20. f4 {[%clk 00:40:32]} {[%emt 00:05:54]} Nf7 {[%clk 00:37:50]} {[%emt
00:00:54]} 21. Bd3 {[%clk 00:40:15]} {[%emt 00:00:46]} Rde8 {[%clk 00:32:52]}
{[%emt 00:05:28]} 22. Bg6 {[%clk 00:35:10]} {[%emt 00:05:36]} Re7 {[%clk
00:32:45]} {[%emt 00:00:36]} 23. Rf2 {[%clk 00:26:32]} {[%emt 00:09:09]} Nf8
{[%clk 00:30:34]} {[%emt 00:02:41]} 24. e4 {[%clk 00:23:01]} {[%emt 00:04:02]}
Nxg6 {[%clk 00:19:51]} {[%emt 00:11:13]} 25. hxg6 {[%clk 00:23:29]} {[%emt
00:00:02]} Nd6 {[%clk 00:17:52]} {[%emt 00:02:29]} 26. e5 {[%clk 00:22:58]}
{[%emt 00:01:01]} Ne8 {[%clk 00:16:57]} {[%emt 00:01:25]} 27. Rh1 {[%clk
00:20:28]} {[%emt 00:03:00]} Rf8 {[%clk 00:16:20]} {[%emt 00:01:08]} 28. Rhf1
{[%clk 00:19:09]} {[%emt 00:01:48]} f5 {[%clk 00:14:43]} {[%emt 00:02:08]} 29.
gxf5 {[%clk 00:18:38]} {[%emt 00:01:01]} exf5 {[%clk 00:11:18]} {[%emt
00:03:54]} 30. Rh1 {[%clk 00:13:13]} {[%emt 00:05:54]} Kd7 {[%clk 00:10:30]}
{[%emt 00:01:18]} 31. Nf1 {[%clk 00:13:33]} {[%emt 00:00:09]} Ke6 {[%clk
00:09:42]} {[%emt 00:01:19]} 32. Ne3 {[%clk 00:13:58]} {[%emt 00:00:05]} b5
{[%clk 00:09:45]} {[%emt 00:00:27]} 33. Kd2 {[%clk 00:14:09]} {[%emt 00:00:18]}
b6 {[%clk 00:09:45]} {[%emt 00:00:30]} 34. b4 {[%clk 00:08:51]} {[%emt
00:05:48]} Ra7 {[%clk 00:09:08]} {[%emt 00:01:07]} 35. Kd3 {[%clk 00:06:49]}
{[%emt 00:02:31]} Nc7 {[%clk 00:08:38]} {[%emt 00:01:01]} 36. Rh5 {[%clk
00:06:45]} {[%emt 00:00:34]} Ra3 {[%clk 00:08:21]} {[%emt 00:00:47]} 37. Rfh2
{[%clk 00:05:59]} {[%emt 00:01:15]} Na6 {[%clk 00:07:44]} {[%emt 00:01:08]} 38.
Rb2 {[%clk 00:06:23]} {[%emt 00:00:05]} Nc7 {[%clk 00:07:13]} {[%emt 00:01:01]}
1/2-1/2

[Event "Kvibergspelen 2018"]
[Site "Prioritet Serneke Arena, Krutvagen 2, Gothenburg, Sweden"]
[Date "2018.04.22"]
[Round "7.12"]
[White "Johansson, Roy"]
[Black "Ronneland, Daniel"]
[Result "0-1"]
[TimeControl "15 minutes + 5 seconds per move from move one (Round 1 - 4) / 90 minutes + 30 seconds per move from move one (Round 5 - 8)"]
[WhiteFideId "1745972"]
[BlackFideId "1702130"]
[WhiteElo "1841"]
[BlackElo "2201"]

1. d4 {[%emt 00:07:33]} Nf6 {[%emt 00:00:15]} 2. Bf4 {[%clk 01:23:00]} {[%emt
00:00:11]} d6 {[%clk 01:30:19]} {[%emt 00:00:41]} 3. e3 {[%clk 01:23:14]}
{[%emt 00:00:16]} g6 {[%clk 01:30:35]} {[%emt 00:00:14]} 4. h3 {[%clk
01:23:31]} {[%emt 00:00:14]} Bg7 {[%clk 01:30:59]} {[%emt 00:00:05]} 5. Nf3
{[%clk 01:23:56]} {[%emt 00:00:05]} O-O {[%clk 01:31:18]} {[%emt 00:00:11]} 6.
Be2 {[%clk 01:24:22]} {[%emt 00:00:04]} b6 {[%clk 01:28:42]} {[%emt 00:03:06]}
7. O-O {[%clk 01:24:43]} {[%emt 00:00:09]} Bb7 {[%clk 01:28:07]} {[%emt
00:01:02]} 8. Nbd2 {[%clk 01:18:21]} {[%emt 00:06:55]} Nbd7 {[%clk 01:28:11]}
{[%emt 00:00:26]} 9. a4 {[%clk 01:17:40]} {[%emt 00:01:12]} a5 {[%clk
01:26:50]} {[%emt 00:01:50]} 10. c3 {[%clk 01:15:28]} {[%emt 00:02:43]} Re8
{[%clk 01:27:11]} {[%emt 00:00:08]} 11. Bh2 {[%clk 01:14:17]} {[%emt 00:01:41]}
e5 {[%clk 01:18:49]} {[%emt 00:08:51]} 12. Nc4 {[%clk 01:12:09]} {[%emt
00:02:39]} e4 {[%clk 01:14:25]} {[%emt 00:04:53]} 13. Nfd2 {[%clk 01:12:22]}
{[%emt 00:00:16]} Qe7 {[%clk 01:05:44]} {[%emt 00:09:11]} 14. b4 {[%clk
01:08:28]} {[%emt 00:04:26]} Nd5 {[%clk 00:53:58]} {[%emt 00:12:14]} 15. Qb3
{[%clk 01:07:58]} {[%emt 00:01:02]} Bc6 {[%clk 00:50:16]} {[%emt 00:04:11]} 16.
bxa5 {[%clk 01:06:21]} {[%emt 00:02:08]} bxa5 {[%clk 00:50:39]} {[%emt
00:00:07]} 17. Na3 {[%clk 01:06:08]} {[%emt 00:00:43]} N7b6 {[%clk 00:48:11]}
{[%emt 00:02:58]} 18. Nb5 {[%clk 01:04:39]} {[%emt 00:02:00]} Reb8 {[%clk
00:41:45]} {[%emt 00:06:55]} 19. c4 {[%clk 01:03:20]} {[%emt 00:01:50]} Nb4
{[%clk 00:40:07]} {[%emt 00:02:06]} 20. c5 {[%clk 01:02:53]} {[%emt 00:00:59]}
Nc8 {[%clk 00:33:26]} {[%emt 00:07:10]} 21. Rac1 {[%clk 01:00:07]} {[%emt
00:03:16]} Rb7 {[%clk 00:30:12]} {[%emt 00:03:44]} 22. cxd6 {[%clk 00:47:55]}
{[%emt 00:12:43]} Nxd6 {[%clk 00:29:56]} {[%emt 00:00:45]} 23. Rc5 {[%clk
00:46:00]} {[%emt 00:02:26]} Bf8 {[%clk 00:26:08]} {[%emt 00:04:18]} 24. Rfc1
{[%clk 00:45:30]} {[%emt 00:01:01]} Bxb5 {[%clk 00:24:24]} {[%emt 00:02:14]} 25.
axb5 {[%clk 00:43:49]} {[%emt 00:02:09]} Qd7 {[%clk 00:22:05]} {[%emt
00:02:49]} 26. Nc4 {[%clk 00:38:40]} {[%emt 00:05:41]} Nxc4 {[%clk 00:21:31]}
{[%emt 00:01:03]} 27. R5xc4 {[%clk 00:38:36]} {[%emt 00:00:34]} a4 {[%clk
00:19:35]} {[%emt 00:02:26]} 28. Qb1 {[%clk 00:37:41]} {[%emt 00:01:25]} Nd5
{[%clk 00:19:05]} {[%emt 00:01:00]} 29. Qxe4 {[%clk 00:36:38]} {[%emt
00:01:33]} a3 {[%clk 00:17:15]} {[%emt 00:02:20]} 30. Rxc7 {[%clk 00:33:55]}
{[%emt 00:03:13]} Rxc7 {[%clk 00:17:16]} {[%emt 00:00:30]} 31. Rxc7 {[%clk
00:33:47]} {[%emt 00:00:36]} Nxc7 {[%clk 00:14:03]} {[%emt 00:03:45]} 32. Bxc7
{[%clk 00:34:10]} {[%emt 00:00:07]} Rc8 {[%clk 00:13:47]} {[%emt 00:00:46]} 33.
Be5 {[%clk 00:30:59]} {[%emt 00:03:41]} a2 {[%clk 00:13:37]} {[%emt 00:00:40]}
34. d5 {[%clk 00:31:16]} {[%emt 00:00:13]} Rc1+ {[%clk 00:13:58]} {[%emt
00:00:09]} 35. Kh2 {[%emt 00:00:16]} Bd6 {[%emt 00:00:13]} 36. b6 {[%clk
00:30:02]} {[%emt 00:01:16]} a1=Q {[%clk 00:14:06]} {[%emt 00:00:21]} 37. b7
{[%clk 00:30:03]} {[%emt 00:00:30]} Qxe5 {[%clk 00:14:06]} {[%emt 00:00:29]}
0-1

[Event "Kvibergspelen 2018"]
[Site "Prioritet Serneke Arena, Krutvagen 2, Gothenburg, Sweden"]
[Date "2018.04.22"]
[Round "7.13"]
[White "Muntean, Victor"]
[Black "Fransson, Patrick"]
[Result "0-1"]
[TimeControl "15 minutes + 5 seconds per move from move one (Round 1 - 4) / 90 minutes + 30 seconds per move from move one (Round 5 - 8)"]
[WhiteFideId "1054414"]
[BlackFideId "1709305"]
[WhiteElo "1846"]
[BlackElo "2176"]

1. e4 {[%clk 01:30:58]} {[%emt 00:13:04]} c6 {[%clk 01:30:30]} {[%emt
00:00:30]} 2. d4 {[%clk 01:31:21]} {[%emt 00:00:07]} d5 {[%clk 01:30:59]}
{[%emt 00:00:02]} 3. exd5 {[%clk 01:31:46]} {[%emt 00:00:06]} cxd5 {[%clk
01:31:23]} {[%emt 00:00:05]} 4. c4 {[%clk 01:32:10]} {[%emt 00:00:06]} Nf6
{[%clk 01:31:08]} {[%emt 00:00:45]} 5. Nc3 {[%clk 01:32:32]} {[%emt 00:00:08]}
e6 {[%clk 01:31:14]} {[%emt 00:00:23]} 6. Nf3 {[%clk 01:32:44]} {[%emt
00:00:18]} Nc6 {[%clk 01:30:38]} {[%emt 00:01:06]} 7. c5 {[%clk 01:31:18]}
{[%emt 00:01:57]} Be7 {[%clk 01:28:46]} {[%emt 00:02:21]} 8. a3 {[%clk
01:29:21]} {[%emt 00:02:28]} Ne4 {[%clk 01:23:28]} {[%emt 00:05:48]} 9. Qc2
{[%clk 01:29:07]} {[%emt 00:00:44]} f5 {[%clk 01:21:09]} {[%emt 00:02:48]} 10.
b4 {[%clk 01:27:34]} {[%emt 00:02:03]} Bf6 {[%clk 01:20:22]} {[%emt 00:01:17]}
11. Be3 {[%clk 01:26:45]} {[%emt 00:01:20]} O-O {[%clk 01:18:02]} {[%emt
00:02:48]} 12. O-O-O {[%clk 01:24:33]} {[%emt 00:02:43]} Bd7 {[%clk 01:15:20]}
{[%emt 00:03:11]} 13. b5 {[%clk 01:21:47]} {[%emt 00:03:17]} Ne7 {[%clk
01:14:06]} {[%emt 00:01:44]} 14. Nxe4 {[%clk 01:19:28]} {[%emt 00:02:49]} fxe4
{[%clk 01:11:42]} {[%emt 00:02:53]} 15. Nd2 {[%clk 01:19:15]} {[%emt 00:00:43]}
Qa5 {[%clk 01:08:20]} {[%emt 00:03:52]} 16. Qb2 {[%clk 01:18:26]} {[%emt
00:01:20]} Rac8 {[%clk 01:06:09]} {[%emt 00:02:40]} 17. Nb3 {[%clk 01:18:31]}
{[%emt 00:00:26]} Qa4 {[%clk 01:01:23]} {[%emt 00:05:15]} 18. c6 {[%clk
01:15:54]} {[%emt 00:03:07]} bxc6 {[%clk 01:01:31]} {[%emt 00:00:22]} 19. Nc5
{[%clk 01:13:09]} {[%emt 00:03:16]} cxb5 {[%clk 01:01:25]} {[%emt 00:00:36]} 20.
Qb4 {[%clk 01:11:33]} {[%emt 00:02:05]} Qa6 {[%clk 00:56:43]} {[%emt 00:05:13]}
21. Kd2 {[%clk 01:04:33]} {[%emt 00:07:30]} Qc6 {[%clk 00:55:42]} {[%emt
00:01:31]} 22. Nxd7 {[%clk 00:56:44]} {[%emt 00:08:19]} Qxd7 {[%clk 00:55:06]}
{[%emt 00:01:06]} 23. Bxb5 {[%clk 00:57:07]} {[%emt 00:00:07]} Qd8 {[%clk
00:51:04]} {[%emt 00:04:30]} 24. Rc1 {[%clk 00:53:07]} {[%emt 00:04:31]} Nf5
{[%clk 00:48:20]} {[%emt 00:03:14]} 25. Rxc8 {[%clk 00:42:36]} {[%emt
00:11:02]} Qxc8 {[%clk 00:48:49]} 26. Rc1 {[%clk 00:42:43]} {[%emt 00:00:23]}
Qd8 {[%clk 00:47:11]} {[%emt 00:02:08]} 27. Ba6 {[%clk 00:39:42]} {[%emt
00:03:31]} Be7 {[%clk 00:43:50]} {[%emt 00:03:50]} 28. Qa4 {[%clk 00:38:17]}
{[%emt 00:01:56]} Bg5 {[%clk 00:36:45]} {[%emt 00:07:34]} 29. Rc8 {[%clk
00:36:31]} {[%emt 00:02:16]} Bxe3+ {[%clk 00:36:05]} {[%emt 00:01:10]} 30. fxe3
{[%clk 00:36:48]} {[%emt 00:00:14]} Qg5 {[%clk 00:36:23]} {[%emt 00:00:11]} 31.
Rxf8+ {[%clk 00:34:34]} {[%emt 00:02:44]} Kxf8 {[%clk 00:36:51]} {[%emt
00:00:02]} 32. Qb4+ {[%clk 00:33:32]} {[%emt 00:01:33]} Kf7 {[%clk 00:37:08]}
{[%emt 00:00:12]} 33. Qb3 {[%clk 00:31:56]} {[%emt 00:02:07]} Qxg2+ {[%clk
00:36:26]} {[%emt 00:01:11]} 34. Kc3 {[%clk 00:32:18]} {[%emt 00:00:08]} Qf2
{[%clk 00:35:56]} {[%emt 00:01:00]} 0-1

[Event "Kvibergspelen 2018"]
[Site "Prioritet Serneke Arena, Krutvagen 2, Gothenburg, Sweden"]
[Date "2018.04.22"]
[Round "7.14"]
[White "Wengholm, Anders"]
[Black "Berg, Roy"]
[Result "1-0"]
[TimeControl "15 minutes + 5 seconds per move from move one (Round 1 - 4) / 90 minutes + 30 seconds per move from move one (Round 5 - 8)"]
[WhiteFideId "1704818"]
[BlackFideId "1711458"]
[WhiteElo "2158"]
[BlackElo "1961"]

1. Nf3 {[%clk 01:30:53]} {[%emt 00:00:04]} Nf6 {[%clk 01:30:23]} {[%emt
00:00:38]} 2. c4 {[%clk 01:31:17]} {[%emt 00:00:06]} c6 {[%clk 01:30:44]}
{[%emt 00:00:09]} 3. e3 {[%clk 01:30:03]} {[%emt 00:01:43]} d5 {[%clk
01:30:33]} {[%emt 00:00:41]} 4. b3 {[%clk 01:30:22]} {[%emt 00:00:11]} Bf5
{[%clk 01:29:27]} {[%emt 00:01:36]} 5. Bb2 {[%clk 01:30:38]} {[%emt 00:00:15]}
e6 {[%clk 01:28:27]} {[%emt 00:01:30]} 6. h3 {[%clk 01:29:53]} {[%emt
00:01:16]} Bg6 {[%clk 01:26:14]} {[%emt 00:02:43]} 7. Ne5 {[%clk 01:27:46]}
{[%emt 00:02:37]} Nbd7 {[%clk 01:23:43]} {[%emt 00:03:01]} 8. Nxg6 {[%clk
01:27:59]} {[%emt 00:00:17]} hxg6 {[%clk 01:24:01]} {[%emt 00:00:11]} 9. g4
{[%clk 01:24:14]} {[%emt 00:04:15]} g5 {[%clk 01:08:45]} {[%emt 00:15:46]} 10.
Bg2 {[%clk 01:22:35]} {[%emt 00:02:09]} Bd6 {[%clk 01:08:52]} {[%emt 00:00:23]}
11. Nc3 {[%clk 01:22:25]} {[%emt 00:00:41]} Qe7 {[%clk 01:07:37]} {[%emt
00:01:45]} 12. Qe2 {[%clk 01:22:15]} {[%emt 00:00:40]} Ba3 {[%clk 01:04:37]}
{[%emt 00:03:30]} 13. Bxa3 {[%clk 01:21:06]} {[%emt 00:01:39]} Qxa3 {[%clk
01:04:59]} {[%emt 00:00:08]} 14. f4 {[%clk 01:21:11]} {[%emt 00:00:25]} gxf4
{[%clk 00:46:33]} {[%emt 00:18:56]} 15. exf4 {[%clk 01:21:04]} {[%emt
00:00:36]} d4 {[%clk 00:40:37]} {[%emt 00:06:27]} 16. Nd1 {[%clk 01:17:26]}
{[%emt 00:04:08]} Qd6 {[%clk 00:35:12]} {[%emt 00:05:54]} 17. O-O {[%clk
01:17:29]} {[%emt 00:00:27]} O-O-O {[%clk 00:28:55]} {[%emt 00:06:49]} 18. Qf2
{[%clk 00:52:51]} {[%emt 00:25:07]} Nc5 {[%clk 00:22:49]} {[%emt 00:06:35]} 19.
Nb2 {[%clk 00:44:00]} {[%emt 00:09:22]} a5 {[%clk 00:12:40]} {[%emt 00:10:39]}
20. Rae1 {[%clk 00:43:37]} {[%emt 00:00:53]} Rde8 {[%clk 00:09:13]} {[%emt
00:03:57]} 21. Qg3 {[%clk 00:39:53]} {[%emt 00:04:14]} g5 {[%clk 00:07:18]}
{[%emt 00:02:25]} 22. Qf3 {[%clk 00:39:33]} {[%emt 00:00:50]} Nh7 {[%clk
00:06:21]} {[%emt 00:01:27]} 23. a3 {[%clk 00:38:51]} {[%emt 00:01:13]} Re7
{[%clk 00:04:33]} {[%emt 00:02:18]} 24. b4 {[%clk 00:35:05]} {[%emt 00:04:16]}
axb4 {[%clk 00:04:55]} {[%emt 00:00:08]} 25. axb4 {[%clk 00:35:28]} {[%emt
00:00:06]} Nd7 {[%clk 00:05:03]} {[%emt 00:00:24]} 26. c5 {[%clk 00:30:59]}
{[%emt 00:04:59]} Qc7 {[%clk 00:04:11]} {[%emt 00:01:22]} 27. Nc4 {[%clk
00:30:38]} {[%emt 00:00:52]} Qxf4 {[%clk 00:02:55]} {[%emt 00:01:46]} 28. Nd6+
{[%clk 00:28:46]} {[%emt 00:02:21]} Kc7 {[%clk 00:02:20]} {[%emt 00:01:06]} 29.
Qd3 {[%clk 00:28:09]} {[%emt 00:01:06]} Ne5 {[%clk 00:01:30]} {[%emt 00:01:21]}
30. Qa3 {[%clk 00:28:28]} {[%emt 00:00:10]} Qxd2 {[%clk 00:01:09]} {[%emt
00:00:52]} 31. Rxe5 {[%clk 00:26:43]} {[%emt 00:02:14]} Rb8 {[%clk 00:01:04]}
{[%emt 00:00:34]} 32. Qa5+ {[%clk 00:26:32]} {[%emt 00:00:42]} Kd7 {[%clk
00:01:18]} {[%emt 00:00:17]} 33. Qa7 {[%clk 00:26:29]} {[%emt 00:00:32]} Kc7
{[%clk 00:01:21]} {[%emt 00:00:28]} 34. Qb6+ {[%clk 00:26:43]} {[%emt
00:00:13]} Kd7 {[%clk 00:01:26]} {[%emt 00:00:27]} 35. Bxc6+ {[%clk 00:27:02]}
{[%emt 00:00:11]} 1-0